bitfinex-derivatives/quotes_BTCF0:USTF0_20241116
["timestamp","ask_amount","ask_price","bid_price","bid_amount"]
[1731720297652,0.09510601,91324.0,91321.0,0.0319]
[1731720299359,0.08608,91324.0,91321.0,0.0319]
[1731720299568,0.09511498,91324.0,91321.0,0.0319]
[1731720299865,0.00903498,91323.0,91321.0,0.0319]
[1731720302559,0.00903498,91323.0,91322.0,0.12442794]
[1731720302760,0.36136001,91330.0,91322.0,0.12442794]
[1731720302761,0.3608,91330.0,91322.0,0.12442794]
[1731720302966,0.08612,91337.0,91329.0,0.1947965]
[1731720303359,0.08612,91337.0,91330.0,0.1947965]
[1731720304175,0.08612,91337.0,91331.0,0.1947965]
[1731720304363,0.08612,91337.0,91332.0,0.0323]
[1731720304566,0.08612,91337.0,91333.0,0.1947965]
[1731720304969,0.08612,91337.0,91335.0,0.1947965]
[1731720305273,0.08612,91337.0,91332.0,0.0323]
[1731720305274,0.00918602,91336.0,91332.0,0.0323]
[1731720305472,0.08612,91337.0,91332.0,0.0323]
[1731720305681,0.0091875,91336.0,91332.0,0.0323]
[1731720305971,0.00922073,91335.0,91332.0,0.0323]
[1731720306159,0.08612,91337.0,91332.0,0.0323]
[1731720306368,0.00922073,91334.0,91332.0,0.0323]
[1731720306566,0.08612,91337.0,91332.0,0.0323]
[1731720306767,0.00915354,91336.0,91332.0,0.0323]
[1731720306964,0.00915354,91335.0,91332.0,0.0323]
[1731720307171,0.08612,91337.0,91332.0,0.0323]
[1731720307368,0.0091557,91336.0,91332.0,0.0323]
[1731720307568,0.0091557,91335.0,91332.0,0.0323]
[1731720307767,0.08612,91337.0,91332.0,0.07104892]
[1731720307768,0.0091557,91334.0,91332.0,0.07104892]
[1731720308068,0.08612,91337.0,91332.0,0.0323]
[1731720308262,0.00916114,91336.0,91332.0,0.22719637]
[1731720308566,0.00916114,91335.0,91332.0,0.22719637]
[1731720308764,0.00916114,91334.0,91332.0,0.22719637]
[1731720309067,0.08612,91337.0,91332.0,0.22719637]
[1731720309269,0.00915897,91336.0,91332.0,0.22719637]
[1731720309477,0.08612,91337.0,91333.0,0.19489637]
[1731720309774,0.08612,91337.0,91332.0,0.0323]
[1731720310675,0.00917642,91336.0,91332.0,0.0323]
[1731720310867,0.00917642,91335.0,91332.0,0.0323]
[1731720311175,0.08612,91337.0,91332.0,0.22719637]
[1731720311387,0.08612,91342.0,91332.0,0.22719637]
[1731720311571,0.0091796,91340.0,91332.0,0.22719637]
[1731720311765,0.0091796,91339.0,91332.0,0.22719637]
[1731720311967,0.0091796,91338.0,91332.0,0.22719637]
[1731720312167,0.08612,91342.0,91334.0,0.19489637]
[1731720312362,0.3608,91344.0,91335.0,0.22619637]
[1731720312363,0.00901018,91340.0,91335.0,0.22619637]
[1731720312568,0.3608,91344.0,91337.0,0.19489637]
[1731720313273,0.3608,91344.0,91335.0,0.0313]
[1731720313274,0.3608,91344.0,91339.0,0.19489637]
[1731720313475,0.3608,91344.0,91340.0,0.0314]
[1731720314478,0.76809604,91360.0,91340.0,1.11999466]
[1731720314479,0.08604,91353.0,91340.0,1.11999466]
[1731720314667,0.72876,91360.0,91340.0,0.73042884]
[1731720314866,0.08604,91357.0,91340.0,0.73042884]
[1731720316182,0.3608,91360.0,91340.0,0.73042884]
[1731720316685,0.3608,91360.0,91340.0,0.73017463]
[1731720317579,0.3608,91360.0,91340.0,1.12013824]
[1731720318684,0.3608,91360.0,91340.0,0.73017463]
[1731720319672,0.08604,91351.0,91340.0,0.73017463]
[1731720319983,0.08604,91351.0,91340.0,0.71713149]
[1731720320170,0.08604,91351.0,91340.0,0.3922]
[1731720320376,0.21046794,91351.0,91340.0,0.3608]
[1731720320576,0.3608,91342.0,91339.0,0.25995462]
[1731720320780,0.08604,91340.0,91337.0,0.25995462]
[1731720320983,0.08604,91340.0,91335.0,0.25995462]
[1731720321386,0.08604,91340.0,91338.0,0.1950041]
[1731720321588,0.08604,91340.0,91322.0,0.38985615]
[1731720321589,0.0321,91339.0,91334.0,0.1950041]
[1731720321885,0.0321,91339.0,91332.0,0.1950041]
[1731720322076,0.3608,91333.0,91332.0,0.19506139]
[1731720323279,0.08613434,91341.0,91332.0,0.3608]
[1731720323479,0.08613434,91341.0,91337.0,0.19499432]
[1731720323876,9.434e-05,91341.0,91340.0,0.19499432]
[1731720324180,9.434e-05,91341.0,91340.0,0.68573149]
[1731720324377,9.434e-05,91341.0,91340.0,1.02362814]
[1731720324683,9.434e-05,91341.0,91340.0,0.69879114]
[1731720326088,3.4e-07,91341.0,91340.0,1.02723114]
[1731720326479,3.4e-07,91341.0,91340.0,0.68924]
[1731720327081,3.4e-07,91341.0,91340.0,0.72835012]
[1731720327388,3.4e-07,91341.0,91340.0,1.46786039]
[1731720329681,3.4e-07,91341.0,91340.0,0.72835012]
[1731720329983,3.4e-07,91341.0,91340.0,0.83628818]
[1731720330185,3.4e-07,91341.0,91340.0,0.50784818]
[1731720332793,3.4e-07,91341.0,91340.0,0.86408652]
[1731720333691,3.4e-07,91341.0,91340.0,0.53924818]
[1731720333891,3.4e-07,91341.0,91340.0,0.45320818]
[1731720334587,0.13598017,91367.0,91340.0,1.94543569]
[1731720334588,0.0051,91367.0,91340.0,1.94543569]
[1731720334888,0.0379,91380.0,91366.0,0.3608]
[1731720335082,0.00895157,91379.0,91375.0,0.3608]
[1731720335288,0.0328,91389.0,91375.0,0.3608]
[1731720335783,0.11884,91389.0,91375.0,0.3608]
[1731720336294,0.08604,91388.0,91375.0,0.3608]
[1731720336595,0.08604,91388.0,91379.0,0.25984681]
[1731720337489,0.08604,91388.0,91378.0,0.25984681]
[1731720338084,0.0328,91390.0,91378.0,0.25984681]
[1731720338294,0.0306,91389.0,91378.0,0.25984681]
[1731720338586,0.0306,91389.0,91377.0,0.25984681]
[1731720338792,0.0306,91389.0,91378.0,0.25984681]
[1731720339190,0.0306,91389.0,91379.0,0.25984681]
[1731720339584,0.0306,91389.0,91378.0,0.25984681]
[1731720340591,0.0306,91389.0,91381.0,0.19429229]
[1731720341394,0.0328,91390.0,91381.0,0.19429229]
[1731720342295,0.0328,91390.0,91382.0,0.12442794]
[1731720344696,0.13088017,91389.0,91382.0,0.12442794]
[1731720346487,0.16368017,91390.0,91382.0,0.12442794]
[1731720346893,0.0328,91390.0,91382.0,0.12442794]
[1731720347992,0.16329566,91390.0,91382.0,0.12442794]
[1731720351696,0.00060001,91395.0,91389.0,0.12442794]
[1731720351901,0.11656,91399.0,91389.0,0.15612794]
[1731720352096,0.0089879,91398.0,91389.0,0.15612794]
[1731720352297,0.0089879,91397.0,91389.0,0.15612794]
[1731720352705,0.0089879,91396.0,91389.0,0.15612794]
[1731720352892,0.0089879,91395.0,91389.0,0.15612794]
[1731720353095,0.11656,91399.0,91389.0,0.15612794]
[1731720353096,0.0089879,91394.0,91389.0,0.15612794]
[1731720353291,0.00901401,91393.0,91389.0,0.15612794]
[1731720353490,0.1,91400.0,91389.0,0.15612794]
[1731720353697,0.00901402,91399.0,91389.0,0.15612794]
[1731720353894,0.00901402,91398.0,91389.0,0.15612794]
[1731720354097,0.1,91400.0,91389.0,0.15612794]
[1731720354593,0.00900096,91399.0,91391.0,0.19408808]
[1731720354795,0.00900096,91398.0,91391.0,0.19408808]
[1731720354992,0.02344295,91397.0,91391.0,0.19408808]
[1731720355199,0.02344295,91396.0,91392.0,0.19408808]
[1731720355406,0.02344295,91395.0,91392.0,0.19408808]
[1731720355603,0.02344295,91394.0,91392.0,0.19408808]
[1731720355814,0.00900096,91393.0,91392.0,0.19408808]
[1731720356003,0.00900096,91399.0,91392.0,0.19408808]
[1731720356305,0.02351845,91398.0,91392.0,0.19408808]
[1731720356507,0.02351845,91397.0,91392.0,0.19408808]
[1731720356805,0.02351845,91396.0,91392.0,0.19408808]
[1731720357106,0.00900096,91395.0,91389.0,0.26499462]
[1731720357308,0.00900096,91394.0,91389.0,0.23329462]
[1731720357504,0.00900096,91393.0,91389.0,0.23329462]
[1731720357804,0.12442794,91390.0,91389.0,0.03920654]
[1731720358106,0.36980096,91390.0,91381.0,0.19408808]
[1731720358405,0.05403199,91389.0,91380.0,0.19408808]
[1731720358707,0.02353199,91388.0,91381.0,0.19408808]
[1731720359203,0.02353199,91388.0,91380.0,0.19408808]
[1731720359596,0.02353199,91388.0,91377.0,0.02188271]
[1731720359793,0.0305,91389.0,91377.0,0.02188271]
[1731720359794,0.02402837,91387.0,91377.0,0.02188271]
[1731720359994,0.0305,91389.0,91377.0,0.02188271]
[1731720359995,0.00924168,91386.0,91377.0,0.02188271]
[1731720360205,0.02385546,91385.0,91377.0,0.02188271]
[1731720360403,0.0305,91389.0,91377.0,0.02188271]
[1731720360404,0.02385546,91384.0,91377.0,0.02188271]
[1731720360604,0.00917518,91383.0,91377.0,0.21597079]
[1731720360806,0.00917518,91382.0,91378.0,0.19408808]
[1731720360994,0.00917518,91381.0,91378.0,0.19408808]
[1731720361200,0.00917518,91380.0,91378.0,0.19408808]
[1731720361398,0.00917518,91380.0,91377.0,0.02188271]
[1731720361399,0.00917518,91379.0,91377.0,0.02188271]
[1731720361606,0.0305,91389.0,91377.0,0.21597079]
[1731720361799,0.02408894,91388.0,91377.0,0.02188271]
[1731720362405,0.02433299,91387.0,91377.0,0.21597079]
[1731720362713,0.02433299,91386.0,91378.0,0.19408808]
[1731720362897,0.02433299,91385.0,91379.0,0.19408808]
[1731720363097,0.00935884,91384.0,91379.0,0.19408808]
[1731720363302,0.00935884,91383.0,91379.0,0.19408808]
[1731720363607,0.00935884,91382.0,91381.0,0.19408808]
[1731720363913,0.0305,91389.0,91379.0,0.19408808]
[1731720363914,0.00935884,91388.0,91379.0,0.19408808]
[1731720364208,0.3608,91381.0,91375.0,0.03971242]
[1731720364411,0.11035791,91380.0,91371.0,0.19408808]
[1731720364705,0.02439791,91379.0,91374.0,0.19408808]
[1731720365305,0.02439791,91379.0,91373.0,0.19408808]
[1731720366400,0.15489357,91379.0,91371.0,0.19408808]
[1731720366711,0.52391958,91372.0,91365.0,0.03869306]
[1731720367005,0.52391958,91372.0,91362.0,0.3608]
[1731720367006,0.21931749,91371.0,91362.0,0.3608]
[1731720367306,0.13109262,91366.0,91362.0,0.3608]
[1731720367511,0.00935884,91365.0,91362.0,0.3608]
[1731720367903,0.00935884,91366.0,91362.0,0.3608]
[1731720368114,0.00935884,91365.0,91362.0,0.3608]
[1731720368609,0.00935884,91364.0,91362.0,0.3608]
[1731720368908,0.00935884,91363.0,91362.0,0.3608]
[1731720369112,0.21705262,91369.0,91362.0,0.3608]
[1731720369303,0.00935366,91363.0,91362.0,0.3608]
[1731720369498,0.08596,91369.0,91362.0,0.3608]
[1731720369697,0.00935157,91368.0,91362.0,0.39893756]
[1731720369997,0.00935157,91367.0,91362.0,0.39893756]
[1731720370208,0.00935157,91366.0,91362.0,0.39893756]
[1731720370517,0.00919271,91365.0,91362.0,0.39893756]
[1731720370711,0.00919271,91364.0,91362.0,0.39893756]
[1731720370908,0.00919271,91363.0,91362.0,0.39893756]
[1731720371608,0.3608,91372.0,91362.0,0.39893756]
[1731720371809,0.00917857,91371.0,91362.0,0.39893756]
[1731720372001,0.02386415,91370.0,91362.0,0.39893756]
[1731720372202,0.3608,91372.0,91362.0,0.39893756]
[1731720372203,0.02395976,91369.0,91362.0,0.39893756]
[1731720372413,0.02395976,91368.0,91362.0,0.39893756]
[1731720372709,0.3608,91364.0,91355.0,0.0318]
[1731720372917,0.3608,91364.0,91349.0,0.12442794]
[1731720372918,0.08596,91363.0,91349.0,0.12442794]
[1731720373115,0.00923644,91362.0,91350.0,0.03843953]
[1731720373408,0.00923644,91361.0,91349.0,0.12442794]
[1731720373609,0.00923644,91360.0,91349.0,0.12442794]
[1731720373805,0.00923644,91359.0,91349.0,0.12442794]
[1731720374008,0.00923644,91358.0,91349.0,0.12442794]
[1731720374314,0.00923644,91357.0,91349.0,0.12442794]
[1731720374517,0.00923644,91362.0,91349.0,0.12442794]
[1731720374814,0.08596,91363.0,91361.0,0.19408808]
[1731720375015,0.00931619,91362.0,91361.0,0.19408808]
[1731720375617,0.00931619,91362.0,91349.0,0.16230611]
[1731720375618,0.00931619,91362.0,91360.0,0.19408808]
[1731720375916,0.08596,91363.0,91355.0,0.19408808]
[1731720375917,0.02420614,91361.0,91355.0,0.19408808]
[1731720376106,0.02420614,91360.0,91354.0,0.19408808]
[1731720376431,0.02420614,91360.0,91349.0,0.03787817]
[1731720376432,0.08596,91363.0,91352.0,0.19408808]
[1731720376603,0.02407609,91362.0,91352.0,0.19408808]
[1731720376805,0.02407609,91361.0,91352.0,0.19408808]
[1731720377114,0.08596,91363.0,91352.0,0.19408808]
[1731720377115,0.02407609,91360.0,91352.0,0.19408808]
[1731720377409,0.00926003,91359.0,91352.0,0.19408808]
[1731720377712,0.00926003,91358.0,91352.0,0.19408808]
[1731720377907,0.02395425,91357.0,91351.0,0.19408808]
[1731720378108,0.00926003,91356.0,91350.0,0.19408808]
[1731720378304,0.08596,91363.0,91349.0,0.19408808]
[1731720378613,0.08596,91363.0,91346.0,0.19408808]
[1731720378614,0.12442794,91351.0,91346.0,0.19408808]
[1731720378800,0.08592,91350.0,91346.0,0.19408808]
[1731720379005,0.08592,91350.0,91345.0,0.40009104]
[1731720379006,0.08592,91350.0,91345.0,0.59417912]
[1731720379305,0.08592,91350.0,91345.0,0.59317912]
[1731720379506,0.08592,91350.0,91345.0,0.39909104]
[1731720381114,0.3608,91353.0,91345.0,0.39909104]
[1731720381315,0.3608,91353.0,91345.0,0.59317912]
[1731720381817,0.08592,91356.0,91345.0,0.39909104]
[1731720382919,0.3608,91364.0,91348.0,0.12442794]
[1731720383218,0.3608,91364.0,91349.0,0.0307]
[1731720383406,0.44672,91364.0,91349.0,0.0307]
[1731720383605,0.08592,91364.0,91349.0,0.0307]
[1731720383804,0.08592,91364.0,91353.0,0.3608]
[1731720384012,0.08592,91364.0,91354.0,0.0645]
[1731720386618,0.00887056,91363.0,91354.0,0.0645]
[1731720386922,0.00887056,91362.0,91354.0,0.0645]
[1731720387112,0.08592,91364.0,91354.0,0.0645]
[1731720387419,0.00894393,91363.0,91354.0,0.0645]
[1731720387613,0.00894393,91362.0,91354.0,0.0645]
[1731720387814,0.08592,91364.0,91354.0,0.0645]
[1731720387815,0.00894393,91361.0,91354.0,0.0645]
[1731720388009,0.08592,91364.0,91354.0,0.0645]
[1731720388010,0.00894393,91360.0,91354.0,0.0645]
[1731720388221,0.08592,91364.0,91354.0,0.0645]
[1731720388420,0.00894101,91363.0,91354.0,0.0645]
[1731720388724,0.00894101,91362.0,91354.0,0.0645]
[1731720388925,0.00894101,91361.0,91354.0,0.0645]
[1731720389110,0.00894101,91360.0,91354.0,0.0645]
[1731720389422,0.00894101,91359.0,91354.0,0.0645]
[1731720389621,0.08592,91364.0,91354.0,0.0645]
[1731720389817,0.00893746,91363.0,91360.0,0.19479722]
[1731720390010,0.00893746,91362.0,91360.0,0.19479722]
[1731720390208,0.00893746,91361.0,91360.0,0.19479722]
[1731720391432,0.00893746,91361.0,91356.0,0.25878411]
[1731720391622,0.00893746,91360.0,91356.0,0.25878411]
[1731720391925,0.00893746,91359.0,91356.0,0.25878411]
[1731720392129,0.00893746,91358.0,91357.0,0.25878411]
[1731720392330,0.08592,91364.0,91354.0,0.0645]
[1731720392331,0.00893746,91363.0,91354.0,0.0645]
[1731720392627,0.08592,91364.0,91362.0,0.19496402]
[1731720392828,0.02360714,91363.0,91362.0,0.19496402]
[1731720393325,0.3608,91365.0,91362.0,0.38437997]
[1731720393530,0.00164212,91370.0,91364.0,0.25995203]
[1731720393737,0.00164212,91370.0,91368.0,0.19504601]
[1731720393916,0.00164212,91370.0,91369.0,0.19504601]
[1731720394316,0.00164212,91370.0,91366.0,0.25995203]
[1731720394618,0.00164212,91370.0,91369.0,0.25995203]
[1731720395313,0.00164212,91370.0,91364.0,0.32348014]
[1731720395922,0.00164212,91370.0,91363.0,0.32348014]
[1731720396419,0.00164212,91370.0,91364.0,0.32348014]
[1731720396818,0.13273474,91370.0,91362.0,0.3579284]
[1731720397929,0.13273474,91370.0,91362.0,0.23350046]
[1731720398129,0.13109262,91365.0,91355.0,0.19511687]
[1731720398322,0.13109262,91365.0,91354.0,0.0645]
[1731720398323,0.13109262,91360.0,91356.0,0.03790109]
[1731720398522,0.13109262,91360.0,91354.0,0.0645]
[1731720398523,0.13109262,91361.0,91354.0,0.0645]
[1731720400024,0.13109262,91361.0,91354.0,0.10393789]
[1731720400423,0.15470848,91360.0,91354.0,0.10393789]
[1731720400618,0.02361586,91359.0,91354.0,0.10393789]
[1731720401628,0.00908302,91358.0,91354.0,0.10393789]
[1731720401831,0.00908302,91357.0,91354.0,0.10393789]
[1731720402020,0.00908302,91356.0,91354.0,0.10393789]
[1731720402222,0.00908302,91355.0,91354.0,0.10393789]
[1731720402521,0.00908302,91355.0,91354.0,0.29905476]
[1731720403931,0.00908302,91355.0,91354.0,0.10393789]
[1731720404519,0.13109262,91363.0,91354.0,0.10393789]
[1731720404724,0.00164212,91370.0,91354.0,0.10393789]
[1731720404725,0.00885164,91362.0,91356.0,0.38817617]
[1731720404928,0.3608,91368.0,91357.0,0.72079514]
[1731720405121,0.3608,91368.0,91354.0,0.10393789]
[1731720405122,0.3608,91368.0,91367.0,0.2604095]
[1731720405426,0.02301406,91368.0,91367.0,0.26040229]
[1731720407230,0.3608,91369.0,91367.0,0.26040229]
[1731720407430,0.02307619,91368.0,91367.0,0.26040229]
[1731720408132,0.02307619,91368.0,91361.0,0.32551188]
[1731720408330,0.0089359,91367.0,91361.0,0.32551188]
[1731720408735,0.0089359,91366.0,91361.0,0.32551188]
[1731720408936,0.0089359,91367.0,91361.0,0.32551188]
[1731720408937,0.0089359,91365.0,91361.0,0.32551188]
[1731720409239,0.0089359,91367.0,91361.0,0.32551188]
[1731720409433,0.0089359,91366.0,91362.0,0.32551188]
[1731720409629,0.0089359,91365.0,91362.0,0.32551188]
[1731720409938,0.0089359,91367.0,91362.0,0.32551188]
[1731720409939,0.0089359,91364.0,91362.0,0.32551188]
[1731720410139,0.0089359,91363.0,91362.0,0.32551188]
[1731720410334,0.0089359,91363.0,91362.0,0.65830831]
[1731720411135,0.0089359,91363.0,91362.0,0.33279643]
[1731720411835,0.0089359,91363.0,91359.0,0.32585272]
[1731720412039,0.0089359,91362.0,91359.0,0.32585272]
[1731720412228,0.0089359,91361.0,91358.0,0.32585272]
[1731720412425,0.0089359,91360.0,91359.0,0.32585272]
[1731720412625,0.02336609,91366.0,91359.0,0.32585272]
[1731720412830,0.0089359,91365.0,91359.0,0.32585272]
[1731720413028,0.0089359,91367.0,91359.0,0.32585272]
[1731720413029,0.0089359,91364.0,91359.0,0.32585272]
[1731720413237,0.0089359,91363.0,91359.0,0.32585272]
[1731720413433,0.0089359,91362.0,91359.0,0.32585272]
[1731720413634,0.0089359,91361.0,91359.0,0.32585272]
[1731720413835,0.0089359,91360.0,91359.0,0.32585272]
[1731720414130,0.0089359,91367.0,91359.0,0.65841165]
[1731720414131,0.0089359,91366.0,91359.0,0.65841165]
[1731720414341,0.0089359,91365.0,91359.0,0.32585272]
[1731720414529,0.0089359,91364.0,91359.0,0.32585272]
[1731720414732,0.0089359,91363.0,91359.0,0.32585272]
[1731720414932,0.0089359,91362.0,91359.0,0.32585272]
[1731720415132,0.0089359,91361.0,91359.0,0.32585272]
[1731720415333,0.0089359,91360.0,91359.0,0.32585272]
[1731720415534,0.0089359,91366.0,91359.0,0.65839853]
[1731720415742,0.02338067,91365.0,91359.0,0.32585272]
[1731720416037,0.00902798,91364.0,91359.0,0.32585272]
[1731720416244,0.00902798,91363.0,91359.0,0.32585272]
[1731720416444,0.00902798,91362.0,91359.0,0.32585272]
[1731720416737,0.00902798,91361.0,91359.0,0.32585272]
[1731720416944,0.00902798,91360.0,91359.0,0.32585272]
[1731720417243,0.02347704,91366.0,91359.0,0.35443941]
[1731720417446,0.00902798,91365.0,91360.0,0.65847134]
[1731720417642,0.00902798,91364.0,91360.0,0.32592371]
[1731720417842,0.00902798,91363.0,91360.0,0.32592371]
[1731720418047,0.00902798,91362.0,91360.0,0.32592371]
[1731720418239,0.00902798,91361.0,91360.0,0.32592371]
[1731720418434,0.00902798,91361.0,91360.0,0.65845941]
[1731720418639,0.00902798,91361.0,91360.0,0.33252019]
[1731720419634,0.00905262,91361.0,91360.0,0.33252019]
[1731720419841,0.00905262,91361.0,91360.0,0.26070513]
[1731720421146,0.00906412,91361.0,91360.0,0.26070513]
[1731720421737,0.00906412,91361.0,91359.0,0.02189128]
[1731720422044,0.13109262,91365.0,91359.0,0.02189128]
[1731720422237,0.13109262,91367.0,91364.0,0.44231965]
[1731720422439,0.00907023,91366.0,91364.0,0.70292825]
[1731720422637,0.00907023,91365.0,91364.0,0.70292825]
[1731720422843,0.00907023,91367.0,91364.0,0.70292825]
[1731720423043,0.00907023,91366.0,91364.0,0.70292825]
[1731720423243,0.13109262,91368.0,91364.0,0.44231965]
[1731720423443,0.00914998,91367.0,91364.0,0.44231965]
[1731720423647,0.00914998,91366.0,91364.0,0.44231965]
[1731720423850,0.00164212,91370.0,91365.0,0.11431965]
[1731720424041,0.02374529,91369.0,91368.0,0.26055239]
[1731720424239,0.0091328,91369.0,91368.0,0.26055239]
[1731720424446,0.0091328,91369.0,91365.0,0.0328]
[1731720424747,0.0091328,91368.0,91365.0,0.0328]
[1731720424947,0.13109262,91374.0,91367.0,0.08151965]
[1731720425245,0.02390274,91373.0,91368.0,0.26042761]
[1731720425555,0.13109262,91376.0,91367.0,0.34194726]
[1731720425754,0.13109262,91375.0,91372.0,0.19527726]
[1731720426047,0.13109262,91375.0,91367.0,0.08151965]
[1731720426048,0.02445804,91374.0,91371.0,0.19527726]
[1731720426351,0.02445804,91373.0,91371.0,0.19527726]
[1731720426652,0.02445804,91372.0,91370.0,0.19527726]
[1731720426953,0.00940693,91371.0,91370.0,0.32588142]
[1731720427653,0.02452426,91371.0,91370.0,0.32588142]
[1731720427841,0.00940693,91371.0,91370.0,0.32588142]
[1731720428447,0.00940693,91377.0,91370.0,0.32419827]
[1731720428650,0.02454474,91376.0,91371.0,0.32539947]
[1731720428852,0.08588,91378.0,91367.0,0.08151965]
[1731720428853,0.02454474,91375.0,91370.0,0.32539947]
[1731720429045,0.00940693,91374.0,91371.0,0.32539947]
[1731720429246,0.00940693,91373.0,91371.0,0.32539947]
[1731720429560,0.08588,91378.0,91371.0,0.32539947]
[1731720429561,0.00940693,91372.0,91371.0,0.32539947]
[1731720429857,0.0245914,91377.0,91371.0,0.64948034]
[1731720430053,0.02459147,91376.0,91374.0,0.08151965]
[1731720430259,0.00940693,91375.0,91374.0,0.08151965]
[1731720430450,0.08588,91378.0,91374.0,0.08151965]
[1731720430754,0.08588,91378.0,91377.0,0.2602629]
[1731720431145,0.00929333,91378.0,91374.0,0.44231965]
[1731720431348,0.00929265,91377.0,91374.0,0.44231965]
[1731720431549,0.00929265,91376.0,91374.0,0.44231965]
[1731720431755,0.3608,91383.0,91374.0,0.44231965]
[1731720432054,0.00926739,91382.0,91378.0,0.26024853]
[1731720432250,0.00926739,91381.0,91378.0,0.26024853]
[1731720432453,0.3608,91383.0,91380.0,0.08151965]
[1731720432752,0.00932043,91382.0,91380.0,0.08151965]
[1731720432945,0.00932043,91381.0,91380.0,0.08151965]
[1731720433554,0.0858,91397.0,91380.0,0.08151965]
[1731720433848,0.00921301,91393.0,91389.0,0.19513656]
[1731720434155,0.00921312,91392.0,91388.0,0.26018208]
[1731720434360,0.0858,91397.0,91391.0,0.19504034]
[1731720434562,0.00929625,91393.0,91390.0,0.19504034]
[1731720434749,0.00929625,91392.0,91390.0,0.19504034]
[1731720434951,0.0386681,91399.0,91391.0,0.3608]
[1731720435255,0.09509635,91398.0,91394.0,0.19501417]
[1731720435559,0.09509635,91398.0,91391.0,0.3608]
[1731720435560,0.00929635,91397.0,91393.0,0.19501417]
[1731720435743,0.0858,91398.0,91393.0,0.19501417]
[1731720435946,0.00928637,91397.0,91393.0,0.19501417]
[1731720436163,0.00928637,91396.0,91393.0,0.19501417]
[1731720436360,0.0858,91398.0,91392.0,0.19501417]
[1731720436549,0.00926701,91397.0,91392.0,0.19501417]
[1731720436750,0.0858,91398.0,91392.0,0.19501417]
[1731720436951,0.00926701,91397.0,91392.0,0.19501417]
[1731720437151,0.0858,91398.0,91392.0,0.19501417]
[1731720437458,0.02408934,91397.0,91391.0,0.55581417]
[1731720437657,0.02408934,91396.0,91392.0,0.19501417]
[1731720437856,0.02408934,91395.0,91392.0,0.19501417]
[1731720438051,0.02408934,91394.0,91392.0,0.19501417]
[1731720438254,0.02408934,91393.0,91392.0,0.08151965]
[1731720438559,0.00164162,91401.0,91392.0,0.80617156]
[1731720438752,0.00164162,91401.0,91399.0,0.44231965]
[1731720440256,0.00164162,91401.0,91399.0,0.80311965]
[1731720441261,0.00164162,91401.0,91399.0,0.7216]
[1731720441461,0.00164162,91401.0,91399.0,1.06236929]
[1731720441861,0.00164162,91401.0,91399.0,0.80311965]
[1731720451969,0.00164162,91401.0,91399.0,0.82499788]
[1731720452161,0.00164162,91401.0,91399.0,0.10339788]
[1731720452467,0.00164162,91401.0,91399.0,0.82499788]
[1731720454471,0.1091945,91400.0,91399.0,0.82499788]
[1731720454669,0.1,91400.0,91399.0,1.01943644]
[1731720454870,0.1,91400.0,91399.0,0.82499788]
[1731720457272,0.1092337,91400.0,91399.0,0.82499788]
[1731720459678,0.1,91400.0,91399.0,0.82499788]
[1731720461874,0.1,91400.0,91399.0,0.90651753]
[1731720462083,0.1,91400.0,91399.0,0.82499788]
[1731720462266,0.1,91400.0,91399.0,0.90651753]
[1731720464168,0.1,91400.0,91399.0,0.74347823]
[1731720464578,0.1,91400.0,91399.0,0.82499788]
[1731720464969,0.1,91400.0,91399.0,0.90651753]
[1731720465173,0.1,91400.0,91399.0,1.62071808]
[1731720465474,0.1,91400.0,91399.0,1.23116691]
[1731720466570,0.1,91400.0,91399.0,1.14964726]
[1731720467372,0.1,91400.0,91399.0,1.53916109]
[1731720468180,0.1,91400.0,91399.0,1.62068074]
[1731720468377,0.1,91400.0,91399.0,0.90651753]
[1731720468683,0.1,91400.0,91399.0,1.54085754]
[1731720469584,0.1,91400.0,91399.0,1.62237719]
[1731720471680,0.1,91400.0,91399.0,0.90077719]
[1731720471881,0.1,91400.0,91399.0,1.62237719]
[1731720472076,0.1,91400.0,91399.0,0.90651753]
[1731720475080,0.09187971,91400.0,91399.0,0.90651753]
[1731720475980,0.10063808,91400.0,91399.0,0.90651753]
[1731720477079,0.10063808,91400.0,91399.0,1.23153637]
[1731720477275,0.09187971,91400.0,91399.0,1.23153637]
[1731720478187,0.09187971,91400.0,91399.0,1.55902334]
[1731720479479,0.09187971,91400.0,91399.0,1.2340045]
[1731720479879,0.19371958,91423.0,91400.0,0.3282]
[1731720480081,0.0306,91423.0,91422.0,0.5238393]
[1731720480285,0.03935934,91423.0,91422.0,0.85141135]
[1731720480681,0.05344493,91423.0,91422.0,0.85141135]
[1731720480884,0.03935934,91423.0,91422.0,0.85141135]
[1731720481100,0.03935934,91423.0,91422.0,0.68837205]
[1731720481290,0.16311958,91443.0,91422.0,1.6003785]
[1731720481591,0.3608,91467.0,91422.0,1.6003785]
[1731720481592,0.0051,91458.0,91442.0,0.80311965]
[1731720481889,0.0319,91470.0,91457.0,0.08151965]
[1731720482194,0.0319,91470.0,91464.0,0.19438357]
[1731720482195,0.01398434,91467.0,91464.0,0.19438357]
[1731720482490,0.0319,91470.0,91463.0,0.27562619]
[1731720482687,0.08151965,91464.0,91458.0,0.19410654]
[1731720482891,0.08151965,91464.0,91450.0,0.0051]
[1731720482892,0.3608,91457.0,91453.0,0.19410654]
[1731720483089,0.08151965,91454.0,91451.0,0.19410654]
[1731720483288,0.0319,91453.0,91452.0,0.19410654]
[1731720483481,0.0319,91453.0,91450.0,0.19410654]
[1731720484398,0.3608,91491.0,91452.0,0.75039786]
[1731720484692,0.0324,91485.0,91476.0,0.44231965]
[1731720484887,0.0324,91485.0,91484.0,0.08151965]
[1731720485288,0.3608,91491.0,91484.0,0.08151965]
[1731720485490,0.08151965,91486.0,91476.0,0.3608]
[1731720485791,0.08151965,91483.0,91476.0,0.3608]
[1731720485986,0.3598,91491.0,91476.0,0.3608]
[1731720486488,0.3598,91491.0,91488.0,0.08151965]
[1731720486900,0.0324,91490.0,91478.0,0.12388936]
[1731720487394,0.0324,91490.0,91476.0,0.3608]
[1731720487596,0.0321,91489.0,91476.0,0.3608]
[1731720487990,0.0314,91488.0,91476.0,0.3608]
[1731720488190,0.0314,91488.0,91483.0,0.12388936]
[1731720489105,0.0321,91489.0,91483.0,0.12388936]
[1731720490216,0.0321,91489.0,91486.0,0.3608]
[1731720490602,0.0324,91490.0,91486.0,0.3608]
[1731720492306,0.10420168,91500.0,91487.0,8.144e-05]
[1731720492915,0.10420168,91500.0,91491.0,0.12388936]
[1731720493213,0.10420168,91500.0,91487.0,0.1239708]
[1731720493429,0.00884516,91499.0,91487.0,0.1239708]
[1731720493610,0.00884516,91498.0,91487.0,0.1239708]
[1731720493814,0.10420168,91500.0,91487.0,0.1239708]
[1731720494015,0.00883856,91499.0,91487.0,0.1239708]
[1731720494214,0.00883621,91498.0,91487.0,0.1239708]